[Event "German Bundesliga 2021-22"]
[Site "Germany"]
[Date "2022.03.05"]
[Round "1.2"]
[White "Bogner, Sebastian"]
[Black "Schroeder, Jan-Christian"]
[Result "1/2-1/2"]
[ECO "E97"]
[WhiteElo "2573"]
[BlackElo "2564"]
[Annotator "ChessBase"]
[PlyCount "84"]
[EventDate "2022.03.05"]
[EventType "team-tourn"]
[EventCountry "GER"]
[SourceTitle "playchess.com"]
[Source "ChessBase"]
[SourceQuality "1"]
[TimeControl "40/5400+30:1800+30"]

1. d4 {[%emt 0:00:00]} Nf6 {[%emt 0:00:00]} 2. c4 {[%emt 0:00:00]} g6 {[%emt 0:00:00]} 3. Nc3 {[%emt 0:00:00]} Bg7 {[%emt 0:00:00]} 4. e4 {[%emt 0:00:00]} d6 {[%emt 0:00:00]} 5. Nf3 {[%emt 0:00:00]} O-O {[%emt 0:00:00]} 6. Be2 {[%emt 0:00:00]} e5 {[%emt 0:00:00]} 7. O-O {[%emt 0:00:00]} Nc6 {[%emt 0:00:00]} 8. d5 {[%emt 0:00:00]} Ne7 {[%emt 0:00:00]} 9. b4 {[%emt 0:00:00]} a5 {[%emt 0:00:00]} 10. bxa5 {[%emt 0:00:00]} Rxa5 {[%emt 0:00:00]} 11. a4 {[%emt 0:00:00]} Ne8 {[%emt 0:00:00]} 12. Bd2 {[%emt 0:12:54]} Ra8 {[%emt 0:04:37]} 13. a5 {[%emt 0:04:36]} h6 {[%emt 0:04:51]} 14. Ne1 {[%emt 0:06:03]} f5 {[%emt 0:01:14]} 15. f3 {[%emt 0:05:34]} Nf6 {[%emt 0:03:59]} 16. c5 {[%emt 0:09:53]} c6 {[%emt 0:06:00]} 17. Bc4 {[%emt 0:06:09]} Kh7 {[%emt 0:03:39]} 18. Nd3 {[%emt 0:06:51]} cxd5 {[%emt 0:08:22]} 19. exd5 {[%emt 0:02:19]} e4 {[%emt 0:10:31]} 20. Nf2 {[%emt 0:11:42]} exf3 {[%emt 0:09:53]} 21. Qxf3 {[%emt 0:00:28]} dxc5 {[%emt 0:00:28]} 22. Rfe1 {[%emt 0:05:26]} Ng4 {[%emt 0:06:45]} 23. Nxg4 {[%emt 0:04:15]} fxg4 {[%emt 0:00:05]} 24. Qd3 {[%emt 0:00:40]} Bf5 {[%emt 0:05:00]} 25. Qg3 {[%emt 0:04:22]} Bd7 {[%emt 0:04:11]} 26. Bd3 {[%emt 0:11:53]} Bf5 {[%emt 0:13:51]} 27. Bc4 {[%emt 0:00:21]} Bf6 {[%emt 0:05:53]} 28. Bf4 {[%emt 0:02:15]} Bd7 {[%emt 0:03:30]} 29. Be5 {[%emt 0:02:26]} Nf5 {[%emt 0:03:02]} 30. Bxf6 {[%emt 0:02:20]} Qxf6 {[%emt 0:00:46]} 31. Qe5 {[%emt 0:00:26]} Qxe5 {[%emt 0:04:04]} 32. Rxe5 {[%emt 0:00:01]} Rfe8 {[%emt 0:01:37]} 33. Rxe8 {[%emt 0:01:35]} Rxe8 {[%emt 0:00:25]} 34. a6 {[%emt 0:02:38]} bxa6 {[%emt 0:01:13]} 35. Rxa6 {[%emt 0:00:08]} Re1+ {[%emt 0:02:13]} 36. Kf2 {[%emt 0:00:16]} Rc1 {[%emt 0:00:07]} 37. Ra7 {[%emt 0:01:22]} Rxc3 {[%emt 0:00:05]} 38. Rxd7+ {[%emt 0:00:06]} Kg8 {[%emt 0:00:07]} 39. Be2 {[%emt 0:01:22]} Rc2 {[%emt 0:01:10]} 40. Ke1 {[%emt 0:00:28]} c4 {[%emt 0:02:06]} 41. Rc7 {[%emt 0:00:00]} h5 {[%emt 0:00:00]} 42. Rxc4 {[%emt 0:00:00]} Rxc4 {[%emt 0:01:31]} 1/2-1/2

[Event "German Bundesliga 2021-22"]
[Site "Germany"]
[Date "2022.03.05"]
[Round "1.3"]
[White "Lemmers, Oscar"]
[Black "Khenkin, Igor"]
[Result "1/2-1/2"]
[ECO "D41"]
[WhiteElo "2346"]
[BlackElo "2509"]
[Annotator "ChessBase"]
[PlyCount "76"]
[EventDate "2022.03.05"]
[EventType "team-tourn"]
[EventCountry "GER"]
[SourceTitle "playchess.com"]
[Source "ChessBase"]
[SourceQuality "1"]
[TimeControl "40/5400+30:1800+30"]

1. e4 {[%emt 0:00:00]} c6 {[%emt 0:00:00]} 2. c4 {[%emt 0:00:00]} d5 {[%emt 0:00:00]} 3. exd5 {[%emt 0:00:00]} Nf6 {[%emt 0:00:00]} 4. Nc3 {[%emt 0:00:00]} cxd5 {[%emt 0:00:00]} 5. cxd5 {[%emt 0:00:00]} Nxd5 {[%emt 0:00:00]} 6. Nf3 {[%emt 0:00:00]} e6 {[%emt 0:00:00]} 7. Bc4 {[%emt 0:00:00]} Nc6 {[%emt 0:00:00]} 8. O-O {[%emt 0:00:00]} Be7 {[%emt 0:00:00]} 9. d4 {[%emt 0:00:00]} O-O {[%emt 0:00:00]} 10. Re1 {[%emt 0:00:00]} Bf6 {[%emt 0:00:00]} 11. Ne4 {[%emt 0:00:00]} h6 {[%emt 0:01:53]} 12. Bxd5 {[%emt 0:02:51]} exd5 {[%emt 0:00:46]} 13. Nxf6+ {[%emt 0:00:13]} Qxf6 {[%emt 0:00:02]} 14. Ne5 {[%emt 0:00:29]} Re8 {[%emt 0:11:34]} 15. Nxc6 {[%emt 0:02:30]} Rxe1+ {[%emt 0:04:30]} 16. Qxe1 {[%emt 0:00:08]} Qxc6 {[%emt 0:00:04]} 17. Bf4 {[%emt 0:06:24]} Bf5 {[%emt 0:09:40]} 18. Qd2 {[%emt 0:17:12]} Re8 {[%emt 0:07:14]} 19. a3 {[%emt 0:10:35]} Qb5 {[%emt 0:08:35]} 20. Be3 {[%emt 0:00:53]} Re6 {[%emt 0:12:26]} 21. Rc1 {[%emt 0:01:14]} Rb6 {[%emt 0:09:45]} 22. b4 {[%emt 0:00:29]} Qa4 {[%emt 0:01:40]} 23. Rc3 {[%emt 0:05:39]} a5 {[%emt 0:02:35]} 24. bxa5 {[%emt 0:05:53]} Rb2 {[%emt 0:05:50]} 25. Qe1 {[%emt 0:00:14]} Kh7 {[%emt 0:00:05]} 26. Rc1 {[%emt 0:07:08]} Qxa3 {[%emt 0:00:58]} 27. Ra1 {[%emt 0:01:03]} Qb3 {[%emt 0:13:34]} 28. h3 {[%emt 0:01:42]} Bd3 {[%emt 0:03:41]} 29. Qd1 {[%emt 0:02:13]} Qxd1+ {[%emt 0:02:02]} 30. Rxd1 {[%emt 0:00:11]} Bc4 {[%emt 0:00:30]} 31. Bf4 {[%emt 0:02:27]} g5 {[%emt 0:02:23]} 32. Bc7 {[%emt 0:01:02]} Kg6 {[%emt 0:01:28]} 33. Re1 {[%emt 0:04:19]} Be2 {[%emt 0:00:03]} 34. f3 {[%emt 0:01:33]} h5 {[%emt 0:00:49]} 35. Kf2 {[%emt 0:08:32]} Bc4+ {[%emt 0:00:07]} 36. Kg1 {[%emt 0:00:04]} Be2 {[%emt 0:00:44]} 37. Kf2 {[%emt 0:00:05]} Bc4+ {[%emt 0:00:10]} 38. Kg1 {[%emt 0:00:06]} Be2 {[%emt 0:03:59]} 1/2-1/2

[Event "German Bundesliga 2021-22"]
[Site "Germany"]
[Date "2022.03.05"]
[Round "1.4"]
[White "Georgiadis, Nico"]
[Black "Gumularz, Szymon"]
[Result "1-0"]
[ECO "C78"]
[WhiteElo "2562"]
[BlackElo "2539"]
[Annotator "ChessBase"]
[PlyCount "79"]
[EventDate "2022.03.05"]
[EventType "team-tourn"]
[EventCountry "GER"]
[SourceTitle "playchess.com"]
[Source "ChessBase"]
[SourceQuality "1"]
[TimeControl "40/5400+30:1800+30"]

1. e4 {[%emt 0:00:00]} e5 {[%emt 0:00:00]} 2. Nf3 {[%emt 0:00:00]} Nc6 {[%emt 0:00:00]} 3. Bb5 {[%emt 0:00:00]} a6 {[%emt 0:00:00]} 4. Ba4 {[%emt 0:00:00]} Nf6 {[%emt 0:00:00]} 5. O-O {[%emt 0:00:00]} b5 {[%emt 0:00:00]} 6. Bb3 {[%emt 0:00:00]} Bc5 {[%emt 0:00:00]} 7. a4 {[%emt 0:00:00]} Rb8 {[%emt 0:00:00]} 8. c3 {[%emt 0:00:00]} d6 {[%emt 0:00:00]} 9. d4 {[%emt 0:00:00]} Bb6 {[%emt 0:00:00]} 10. a5 {[%emt 0:00:00]} Ba7 {[%emt 0:00:00]} 11. h3 {[%emt 0:00:00]} O-O {[%emt 0:00:00]} 12. Be3 {[%emt 0:00:00]} Re8 {[%emt 0:00:13]} 13. Nbd2 {[%emt 0:10:42]} Bb7 {[%emt 0:04:25]} 14. Ng5 {[%emt 0:15:50]} Rf8 {[%emt 0:47:27]} 15. Ndf3 {[%emt 0:01:54]} d5 {[%emt 0:20:34]} 16. exd5 {[%emt 0:14:30]} Nxd5 {[%emt 0:01:44]} 17. Qb1 {[%emt 0:23:29]} g6 {[%emt 0:04:04]} 18. Qa2 {[%emt 0:00:34]} Nce7 {[%emt 0:16:19]} 19. Nxe5 {[%emt 0:03:41]} Qc8 {[%emt 0:00:52]} 20. Ngf3 {[%emt 0:05:32]} f6 {[%emt 0:00:35]} 21. Nd3 {[%emt 0:01:06]} Kh8 {[%emt 0:00:28]} 22. Rfe1 {[%emt 0:02:41]} g5 {[%emt 0:00:25]} 23. Nh2 {[%emt 0:04:57]} Bc6 {[%emt 0:00:10]} 24. Bd1 {[%emt 0:05:20]} Qb7 {[%emt 0:01:25]} 25. Bf3 {[%emt 0:01:03]} Nf5 {[%emt 0:00:23]} 26. c4 {[%emt 0:06:22]} bxc4 {[%emt 0:02:11]} 27. Qxc4 {[%emt 0:00:05]} Nh4 {[%emt 0:00:35]} 28. Rac1 {[%emt 0:01:24]} Nxf3+ {[%emt 0:00:15]} 29. Nxf3 {[%emt 0:00:04]} Bb5 {[%emt 0:00:18]} 30. Qc2 {[%emt 0:00:10]} Rbe8 {[%emt 0:00:41]} 31. Bd2 {[%emt 0:00:53]} Rxe1+ {[%emt 0:01:57]} 32. Rxe1 {[%emt 0:00:23]} Rg8 {[%emt 0:00:11]} 33. Nc5 {[%emt 0:01:02]} Qc8 {[%emt 0:00:08]} 34. Qe4 {[%emt 0:01:18]} Qd8 {[%emt 0:01:31]} 35. Ne6 {[%emt 0:02:22]} Qd6 {[%emt 0:00:25]} 36. Bxg5 {[%emt 0:00:48]} Re8 {[%emt 0:00:43]} 37. Qf5 {[%emt 0:00:12]} fxg5 {[%emt 0:00:20]} 38. Nfxg5 {[%emt 0:00:07]} Qe7 {[%emt 0:00:38]} 39. Nf7+ {[%emt 0:00:11]} Kg8 {[%emt 0:00:07]} 40. Qg4+ {[%emt 0:00:04]} 1-0

[Event "German Bundesliga 2021-22"]
[Site "Germany"]
[Date "2022.03.05"]
[Round "1.5"]
[White "Baldauf, Marco"]
[Black "Dragnev, Valentin"]
[Result "0-1"]
[ECO "E06"]
[WhiteElo "2522"]
[BlackElo "2533"]
[Annotator "ChessBase"]
[PlyCount "84"]
[EventDate "2022.03.05"]
[EventType "team-tourn"]
[EventCountry "GER"]
[SourceTitle "playchess.com"]
[Source "ChessBase"]
[SourceQuality "1"]
[TimeControl "40/5400+30:1800+30"]

1. Nf3 {[%emt 0:00:00]} Nf6 {[%emt 0:00:00]} 2. c4 {[%emt 0:00:00]} e6 {[%emt 0:00:00]} 3. Nc3 {[%emt 0:00:00]} d5 {[%emt 0:00:00]} 4. d4 {[%emt 0:00:00]} Be7 {[%emt 0:00:00]} 5. g3 {[%emt 0:00:00]} O-O {[%emt 0:00:00]} 6. Bg2 {[%emt 0:00:00]} Nbd7 {[%emt 0:00:00]} 7. Qd3 {[%emt 0:00:00]} b6 {[%emt 0:00:00]} 8. cxd5 {[%emt 0:00:00]} Nxd5 {[%emt 0:00:00]} 9. Nxd5 {[%emt 0:00:00]} exd5 {[%emt 0:00:00]} 10. O-O {[%emt 0:00:00]} Bb7 {[%emt 0:00:00]} 11. Rd1 {[%emt 0:16:31]} Re8 {[%emt 0:14:04]} 12. Bf4 {[%emt 0:09:24]} Nf8 {[%emt 0:02:40]} 13. Rac1 {[%emt 0:09:08]} Ne6 {[%emt 0:00:53]} 14. Qc2 {[%emt 0:10:41]} Nxf4 {[%emt 0:19:35]} 15. gxf4 {[%emt 0:00:04]} Bd6 {[%emt 0:00:24]} 16. e3 {[%emt 0:01:42]} f6 {[%emt 0:20:23]} 17. Nh4 {[%emt 0:18:18]} g6 {[%emt 0:05:45]} 18. Kh1 {[%emt 0:03:42]} Re7 {[%emt 0:01:17]} 19. Qb3 {[%emt 0:04:55]} c6 {[%emt 0:00:21]} 20. Nf3 {[%emt 0:01:20]} Kh8 {[%emt 0:01:04]} 21. Rg1 {[%emt 0:02:31]} Qd7 {[%emt 0:02:50]} 22. Bf1 {[%emt 0:03:37]} Rf8 {[%emt 0:00:41]} 23. h4 {[%emt 0:01:41]} Qf5 {[%emt 0:01:37]} 24. Rg3 {[%emt 0:02:13]} c5 {[%emt 0:02:50]} 25. Qa4 {[%emt 0:02:29]} Ba8 {[%emt 0:09:32]} 26. Kg1 {[%emt 0:04:45]} Rc7 {[%emt 0:01:43]} 27. b3 {[%emt 0:04:51]} c4 {[%emt 0:01:54]} 28. Bh3 {[%emt 0:03:41]} Qe4 {[%emt 0:02:18]} 29. Kh2 {[%emt 0:02:37]} Bc6 {[%emt 0:04:08]} 30. Qa6 {[%emt 0:00:08]} Qe8 {[%emt 0:00:13]} 31. bxc4 {[%emt 0:01:09]} dxc4 {[%emt 0:00:19]} 32. a4 {[%emt 0:00:24]} Bxa4 {[%emt 0:01:34]} 33. d5 {[%emt 0:00:21]} c3 {[%emt 0:04:59]} 34. Nd4 {[%emt 0:00:40]} c2 {[%emt 0:01:41]} 35. Qd3 {[%emt 0:00:32]} b5 {[%emt 0:02:23]} 36. Rgg1 {[%emt 0:00:34]} b4 {[%emt 0:00:56]} 37. Nxc2 {[%emt 0:00:27]} Rc3 {[%emt 0:00:25]} 38. Qd2 {[%emt 0:00:02]} Qe4 {[%emt 0:00:49]} 39. Nd4 {[%emt 0:00:31]} Rd3 {[%emt 0:00:44]} 40. Qa2 {[%emt 0:00:49]} Bxf4+ {[%emt 0:01:33]} 41. exf4 {[%emt 0:30:04]} Qxf4+ {[%emt 0:00:00]} 42. Kg2 {[%emt 0:00:00]} Rd2 {[%emt 0:00:00]} 0-1

[Event "German Bundesliga 2021-22"]
[Site "Germany"]
[Date "2022.03.05"]
[Round "1.5"]
[White "Begnis, Nikolaos"]
[Black "Dziuba, Marcin"]
[Result "0-1"]
[ECO "B85"]
[WhiteElo "2278"]
[BlackElo "2568"]
[Annotator "ChessBase"]
[PlyCount "66"]
[EventDate "2022.03.05"]
[EventType "team-tourn"]
[EventCountry "GER"]
[SourceTitle "playchess.com"]
[Source "ChessBase"]
[SourceQuality "1"]
[TimeControl "40/5400+30:1800+30"]

1. e4 {[%emt 0:03:48]} c5 {[%emt 0:00:00]} 2. Nf3 {[%emt 0:00:56]} d6 {[%emt 0:00:00]} 3. d4 {[%emt 0:00:19]} cxd4 {[%emt 0:00:00]} 4. Nxd4 {[%emt 0:00:06]} Nf6 {[%emt 0:00:00]} 5. Nc3 {[%emt 0:00:10]} Nc6 {[%emt 0:00:00]} 6. Bc4 {[%emt 0:02:55]} Qb6 {[%emt 0:00:00]} 7. Nb3 {[%emt 0:01:43]} e6 {[%emt 0:00:00]} 8. O-O {[%emt 0:07:52]} Be7 {[%emt 0:00:00]} 9. Be3 {[%emt 0:08:25]} Qc7 {[%emt 0:00:00]} 10. Be2 {[%emt 0:00:16]} O-O {[%emt 0:07:22]} 11. f4 {[%emt 0:01:48]} a6 {[%emt 0:02:13]} 12. a4 {[%emt 0:02:05]} b6 {[%emt 0:03:15]} 13. Bf3 {[%emt 0:05:26]} Bb7 {[%emt 0:01:44]} 14. Qe2 {[%emt 0:16:13]} Rac8 {[%emt 0:04:35]} 15. g4 {[%emt 0:11:33]} Nd7 {[%emt 0:00:57]} 16. g5 {[%emt 0:01:07]} Rfe8 {[%emt 0:01:59]} 17. Bg2 {[%emt 0:05:52]} g6 {[%emt 0:07:52]} 18. Qf2 {[%emt 0:11:50]} Bf8 {[%emt 0:01:17]} 19. f5 {[%emt 0:02:57]} Nce5 {[%emt 0:03:17]} 20. Bd4 {[%emt 0:01:36]} Bg7 {[%emt 0:10:09]} 21. Kh1 {[%emt 0:02:19]} Qd8 {[%emt 0:16:32]} 22. Qg3 {[%emt 0:02:24]} Rc4 {[%emt 0:01:59]} 23. Rad1 {[%emt 0:00:35]} Bc6 {[%emt 0:05:04]} 24. Bg1 {[%emt 0:01:55]} gxf5 {[%emt 0:02:18]} 25. Nd4 {[%emt 0:00:33]} Bxe4 {[%emt 0:03:20]} 26. Nxe4 {[%emt 0:01:20]} fxe4 {[%emt 0:00:12]} 27. Bxe4 {[%emt 0:00:12]} d5 {[%emt 0:00:45]} 28. Bg2 {[%emt 0:00:19]} Qc7 {[%emt 0:02:29]} 29. c3 {[%emt 0:00:50]} Rxa4 {[%emt 0:03:14]} 30. Rf4 {[%emt 0:00:13]} Rc4 {[%emt 0:03:58]} 31. Rdf1 {[%emt 0:01:07]} Nf8 {[%emt 0:00:45]} 32. h4 {[%emt 0:02:39]} Neg6 {[%emt 0:00:39]} 33. Qg4 {[%emt 0:00:56]} Nxf4 {[%emt 0:00:30]} 0-1

[Event "German Bundesliga 2021-22"]
[Site "Germany"]
[Date "2022.03.05"]
[Round "1.5"]
[White "Lipok, Christoph"]
[Black "Maze, Sebastien"]
[Result "1/2-1/2"]
[ECO "E32"]
[WhiteElo "2271"]
[BlackElo "2527"]
[Annotator "ChessBase"]
[PlyCount "73"]
[EventDate "2022.03.05"]
[EventType "team-tourn"]
[EventCountry "GER"]
[SourceTitle "playchess.com"]
[Source "ChessBase"]
[SourceQuality "1"]
[TimeControl "40/5400+30:1800+30"]

1. d4 {[%emt 0:00:00]} Nf6 {[%emt 0:00:00]} 2. c4 {[%emt 0:00:00]} e6 {[%emt 0:00:00]} 3. Nc3 {[%emt 0:00:00]} Bb4 {[%emt 0:00:00]} 4. Qc2 {[%emt 0:00:00]} O-O {[%emt 0:00:00]} 5. a3 {[%emt 0:00:00]} Bxc3+ {[%emt 0:00:00]} 6. Qxc3 {[%emt 0:00:00]} b6 {[%emt 0:00:00]} 7. Bg5 {[%emt 0:00:00]} Bb7 {[%emt 0:00:00]} 8. e3 {[%emt 0:00:00]} d6 {[%emt 0:00:00]} 9. Ne2 {[%emt 0:00:00]} Nbd7 {[%emt 0:00:00]} 10. Qc2 {[%emt 0:00:00]} h6 {[%emt 0:00:00]} 11. Bh4 {[%emt 0:00:00]} c5 {[%emt 0:00:00]} 12. Rd1 {[%emt 0:00:00]} Qe7 {[%emt 0:00:00]} 13. Nc3 {[%emt 0:00:00]} cxd4 {[%emt 0:00:00]} 14. Rxd4 {[%emt 0:00:00]} Ne5 {[%emt 0:00:00]} 15. Be2 {[%emt 0:00:00]} Rfc8 {[%emt 0:00:00]} 16. O-O {[%emt 0:01:26]} Ng6 {[%emt 0:22:09]} 17. Bg3 {[%emt 0:09:35]} d5 {[%emt 0:00:22]} 18. cxd5 {[%emt 0:05:03]} Nxd5 {[%emt 0:01:14]} 19. Nxd5 {[%emt 0:00:44]} Bxd5 {[%emt 0:00:25]} 20. Qd2 {[%emt 0:07:24]} Qb7 {[%emt 0:01:57]} 21. f3 {[%emt 0:00:38]} Ne7 {[%emt 0:02:23]} 22. e4 {[%emt 0:00:58]} Bc6 {[%emt 0:00:03]} 23. Rc1 {[%emt 0:14:52]} Be8 {[%emt 0:07:23]} 24. Rxc8 {[%emt 0:04:23]} Rxc8 {[%emt 0:00:03]} 25. Rd8 {[%emt 0:01:27]} Nc6 {[%emt 0:00:34]} 26. Rxc8 {[%emt 0:01:48]} Qxc8 {[%emt 0:00:02]} 27. Qd6 {[%emt 0:01:24]} f6 {[%emt 0:01:15]} 28. Ba6 {[%emt 0:11:03]} Qxa6 {[%emt 0:10:34]} 29. Qxe6+ {[%emt 0:00:03]} Kh7 {[%emt 0:02:33]} 30. Qxe8 {[%emt 0:00:27]} Qc4 {[%emt 0:00:05]} 31. h4 {[%emt 0:04:27]} Qc1+ {[%emt 0:00:13]} 32. Kh2 {[%emt 0:00:07]} Nd4 {[%emt 0:00:01]} 33. h5 {[%emt 0:08:58]} Qxb2 {[%emt 0:03:56]} 34. Qg6+ {[%emt 0:00:11]} Kh8 {[%emt 0:00:03]} 35. Qe8+ {[%emt 0:00:10]} Kh7 {[%emt 0:00:03]} 36. Qg6+ {[%emt 0:00:06]} Kh8 {[%emt 0:00:02]} 37. Qe8+ 1/2-1/2

[Event "German Bundesliga 2021-22"]
[Site "Germany"]
[Date "2022.03.05"]
[Round "1.6"]
[White "Gavrilescu, David"]
[Black "Coenen, Norbert"]
[Result "1-0"]
[ECO "C54"]
[WhiteElo "2512"]
[BlackElo "2276"]
[Annotator "ChessBase"]
[PlyCount "63"]
[EventDate "2022.03.05"]
[EventType "team-tourn"]
[EventCountry "GER"]
[SourceTitle "playchess.com"]
[Source "ChessBase"]
[SourceQuality "1"]
[TimeControl "40/5400+30:1800+30"]

1. e4 {[%emt 0:00:00]} e5 {[%emt 0:00:00]} 2. Nf3 {[%emt 0:00:00]} Nc6 {[%emt 0:00:00]} 3. Bc4 {[%emt 0:00:00]} Bc5 {[%emt 0:00:00]} 4. c3 {[%emt 0:00:00]} Nf6 {[%emt 0:00:00]} 5. d4 {[%emt 0:00:00]} exd4 {[%emt 0:00:00]} 6. e5 {[%emt 0:00:00]} d5 {[%emt 0:00:00]} 7. Bb5 {[%emt 0:00:00]} Ne4 {[%emt 0:00:00]} 8. cxd4 {[%emt 0:00:00]} Bb6 {[%emt 0:00:00]} 9. Nc3 {[%emt 0:00:00]} O-O {[%emt 0:00:00]} 10. Be3 {[%emt 0:00:00]} Bg4 {[%emt 0:00:00]} 11. h3 {[%emt 0:00:00]} Bh5 {[%emt 0:00:00]} 12. Qc2 {[%emt 0:00:00]} Bxf3 {[%emt 0:05:33]} 13. gxf3 {[%emt 0:00:00]} Ng5 {[%emt 0:02:11]} 14. O-O-O {[%emt 0:00:00]} Nxf3 {[%emt 0:01:05]} 15. Bxc6 {[%emt 0:00:00]} bxc6 {[%emt 0:00:14]} 16. h4 {[%emt 0:03:08]} f5 {[%emt 0:09:46]} 17. Qe2 {[%emt 0:04:05]} f4 {[%emt 0:00:49]} 18. Qxf3 {[%emt 0:00:05]} fxe3 {[%emt 0:00:12]} 19. Qxe3 {[%emt 0:00:03]} Qe7 {[%emt 0:08:37]} 20. Rdg1 {[%emt 0:09:59]} Qf7 {[%emt 0:05:20]} 21. Rg2 {[%emt 0:06:22]} Qf4 {[%emt 0:04:11]} 22. Ne2 {[%emt 0:02:54]} Qxe3+ {[%emt 0:01:23]} 23. fxe3 {[%emt 0:00:02]} c5 {[%emt 0:02:55]} 24. Rhg1 {[%emt 0:07:06]} Rf7 {[%emt 0:02:00]} 25. Nf4 {[%emt 0:19:29]} c6 {[%emt 0:13:31]} 26. Nh5 {[%emt 0:04:21]} cxd4 {[%emt 0:06:25]} 27. Rxg7+ {[%emt 0:02:21]} Rxg7 {[%emt 0:01:39]} 28. Rxg7+ {[%emt 0:00:05]} Kf8 {[%emt 0:05:25]} 29. e6 {[%emt 0:01:25]} Bd8 {[%emt 0:00:21]} 30. Rxh7 {[%emt 0:00:07]} Kg8 {[%emt 0:01:19]} 31. e7 {[%emt 0:00:10]} dxe3 {[%emt 0:00:51]} 32. Nf6# {[%emt 0:00:05]} 1-0

[Event "German Bundesliga 2021-22"]
[Site "Germany"]
[Date "2022.03.05"]
[Round "1.6"]
[White "Libiszewski, Fabien"]
[Black "Fauth, Dietmar"]
[Result "1-0"]
[ECO "B30"]
[WhiteElo "2505"]
[BlackElo "2188"]
[Annotator "ChessBase"]
[PlyCount "59"]
[EventDate "2022.03.05"]
[EventType "team-tourn"]
[EventCountry "GER"]
[SourceTitle "playchess.com"]
[Source "ChessBase"]
[SourceQuality "1"]
[TimeControl "40/5400+30:1800+30"]

1. e4 {[%emt 0:00:00]} c5 {[%emt 0:00:00]} 2. Nf3 {[%emt 0:00:00]} Nc6 {[%emt 0:00:00]} 3. Bb5 {[%emt 0:00:00]} Nf6 {[%emt 0:00:00]} 4. Nc3 {[%emt 0:00:00]} g6 {[%emt 0:00:00]} 5. Bxc6 {[%emt 0:00:00]} dxc6 {[%emt 0:00:00]} 6. h3 {[%emt 0:00:00]} Bg7 {[%emt 0:00:00]} 7. d3 {[%emt 0:00:00]} O-O {[%emt 0:00:00]} 8. Be3 {[%emt 0:00:00]} Qa5 {[%emt 0:16:28]} 9. Nd2 {[%emt 0:01:22]} b6 {[%emt 0:21:50]} 10. O-O {[%emt 0:02:09]} Qa6 {[%emt 0:10:15]} 11. f4 {[%emt 0:01:30]} Qb7 {[%emt 0:04:15]} 12. Qe1 {[%emt 0:00:35]} Qc7 {[%emt 0:06:31]} 13. Qh4 {[%emt 0:01:06]} Ba6 {[%emt 0:02:43]} 14. f5 {[%emt 0:03:27]} Rae8 {[%emt 0:14:42]} 15. Nf3 {[%emt 0:03:19]} Bc8 {[%emt 0:04:16]} 16. Rae1 {[%emt 0:07:40]} e5 {[%emt 0:05:04]} 17. Bg5 {[%emt 0:08:01]} Qd6 {[%emt 0:00:12]} 18. Nh2 {[%emt 0:03:33]} gxf5 19. exf5 {[%emt 0:04:36]} Qd4+ {[%emt 0:02:01]} 20. Kh1 {[%emt 0:00:10]} Qxh4 {[%emt 0:00:04]} 21. Bxh4 {[%emt 0:00:03]} Nd5 {[%emt 0:02:04]} 22. f6 {[%emt 0:18:48]} Bh6 {[%emt 0:00:18]} 23. Nxd5 {[%emt 0:05:09]} cxd5 {[%emt 0:00:02]} 24. Ng4 {[%emt 0:00:04]} Bf4 {[%emt 0:02:34]} 25. Rxf4 {[%emt 0:00:49]} exf4 {[%emt 0:00:02]} 26. Nh6+ {[%emt 0:00:04]} Kh8 {[%emt 0:00:08]} 27. Nxf7+ {[%emt 0:00:12]} Kg8 {[%emt 0:00:20]} 28. Nh6+ {[%emt 0:00:05]} Kh8 {[%emt 0:00:05]} 29. Rxe8 {[%emt 0:00:28]} Rxe8 {[%emt 0:00:01]} 30. f7 {[%emt 0:00:09]} 1-0

[Event "German Bundesliga 2021-22"]
[Site "Germany"]
[Date "2022.03.05"]
[Round "1.6"]
[White "Johansson, Linus"]
[Black "Jakubowski, Krzysztof"]
[Result "1/2-1/2"]
[ECO "D37"]
[WhiteElo "2473"]
[BlackElo "2475"]
[Annotator "ChessBase"]
[PlyCount "86"]
[EventDate "2022.03.05"]
[EventType "team-tourn"]
[EventCountry "GER"]
[SourceTitle "playchess.com"]
[Source "ChessBase"]
[SourceQuality "1"]
[TimeControl "40/5400+30:1800+30"]

1. d4 {[%emt 0:00:00]} Nf6 {[%emt 0:00:00]} 2. c4 {[%emt 0:00:00]} e6 {[%emt 0:00:00]} 3. Nf3 {[%emt 0:00:00]} d5 {[%emt 0:00:00]} 4. Nc3 {[%emt 0:00:00]} Be7 {[%emt 0:00:00]} 5. Bf4 {[%emt 0:00:00]} O-O {[%emt 0:00:00]} 6. e3 {[%emt 0:00:00]} Nbd7 {[%emt 0:00:00]} 7. c5 {[%emt 0:00:00]} Nh5 {[%emt 0:00:00]} 8. b4 {[%emt 0:00:00]} Nxf4 {[%emt 0:07:48]} 9. exf4 {[%emt 0:00:00]} b6 {[%emt 0:00:07]} 10. a3 {[%emt 0:13:56]} c6 {[%emt 0:06:53]} 11. Bd3 {[%emt 0:11:39]} a5 {[%emt 0:01:27]} 12. O-O {[%emt 0:00:21]} Ba6 {[%emt 0:00:11]} 13. Bxa6 {[%emt 0:07:13]} Rxa6 {[%emt 0:00:09]} 14. Qe2 {[%emt 0:01:16]} b5 {[%emt 0:20:52]} 15. Rfb1 {[%emt 0:07:35]} Bf6 {[%emt 0:09:11]} 16. Ra2 {[%emt 0:08:03]} Ra8 {[%emt 0:28:47]} 17. g3 {[%emt 0:00:47]} g6 {[%emt 0:01:55]} 18. Kg2 {[%emt 0:00:25]} Qc7 {[%emt 0:00:26]} 19. h4 {[%emt 0:09:34]} Ra7 {[%emt 0:01:24]} 20. Qd2 {[%emt 0:11:42]} Rfa8 {[%emt 0:01:03]} 21. Ne5 {[%emt 0:04:14]} h5 {[%emt 0:07:47]} 22. a4 {[%emt 0:03:30]} axb4 {[%emt 0:00:15]} 23. Rxb4 {[%emt 0:00:06]} bxa4 {[%emt 0:00:46]} 24. Raxa4 {[%emt 0:00:50]} Nxe5 {[%emt 0:02:20]} 25. fxe5 {[%emt 0:01:48]} Bd8 {[%emt 0:01:15]} 26. Qb2 {[%emt 0:02:00]} Kg7 {[%emt 0:01:56]} 27. Qb3 {[%emt 0:00:49]} Qe7 {[%emt 0:01:47]} 28. Rxa7 {[%emt 0:10:52]} Rxa7 {[%emt 0:00:18]} 29. Ne2 {[%emt 0:00:55]} Ba5 {[%emt 0:04:00]} 30. Ra4 {[%emt 0:01:36]} Bd2 {[%emt 0:00:52]} 31. Ng1 {[%emt 0:01:54]} Rxa4 {[%emt 0:01:11]} 32. Qxa4 {[%emt 0:00:06]} Qb7 {[%emt 0:00:05]} 33. Nf3 {[%emt 0:00:51]} Bc3 {[%emt 0:01:31]} 34. Qa3 {[%emt 0:01:42]} Bb2 {[%emt 0:01:47]} 35. Qa5 {[%emt 0:00:30]} Bc1 {[%emt 0:00:22]} 36. Qb6 {[%emt 0:00:31]} Qa8 {[%emt 0:00:05]} 37. Qb3 {[%emt 0:01:28]} Qa5 {[%emt 0:01:19]} 38. Kf1 {[%emt 0:01:49]} Bh6 {[%emt 0:00:25]} 39. Kg2 {[%emt 0:00:41]} Qa1 {[%emt 0:00:33]} 40. Qc2 {[%emt 0:00:44]} Qa3 {[%emt 0:00:30]} 41. Ne1 {[%emt 0:30:52]} Qa1 {[%emt 0:00:00]} 42. Nf3 {[%emt 0:00:00]} Kg8 {[%emt 0:00:00]} 43. Qb3 {[%emt 0:00:00]} Kg7 {[%emt 0:00:00]} 1/2-1/2